bitfinex/quotes_ETHUSD_20250909
["timestamp","ask_amount","ask_price","bid_price","bid_amount"]
[1757432103580,0.02520001,4289.8,4289.7,10.58894829]
[1757432103738,0.02520001,4289.8,4289.7,10.11574829]
[1757432103931,0.33100001,4289.8,4289.7,4.88573481]
[1757432104171,1.25230001,4289.8,4289.7,5.874]
[1757432104329,1.25230001,4289.8,4289.7,1.905]
[1757432104535,1.25230001,4289.8,4289.6,0.002]
[1757432104536,2.04430001,4289.8,4289.6,0.002]
[1757432104843,0.792,4289.7,4289.6,0.002]
[1757432105186,1.00043,4289.7,4289.6,0.002]
[1757432105347,1.2271,4289.7,4289.6,0.002]
[1757432105532,0.7496,4289.7,4289.6,0.002]
[1757432105738,0.3058,4289.7,4289.6,3.972]
[1757432105934,1.2271,4289.7,4289.6,3.977]
[1757432106133,2.0191,4289.7,4289.6,3.978]
[1757432106475,2.46063711,4289.7,4289.6,3.978]
[1757432106679,2.0191,4289.7,4289.6,3.978]
[1757432106847,2.0191,4289.7,4289.6,0.002]
[1757432107763,4.35026534,4289.7,4289.6,0.002]
[1757432108006,2.0191,4289.7,4289.6,0.002]
[1757432108164,4.35026534,4289.7,4289.6,0.002]
[1757432108362,2.69374745,4289.7,4289.6,0.002]
[1757432108599,4.35026534,4289.7,4289.6,0.002]
[1757432109175,4.34946534,4289.7,4289.6,0.002]
[1757432109370,2.0183,4289.7,4289.6,0.002]
[1757432109573,4.34946534,4289.7,4289.6,0.002]
[1757432110603,4.69676332,4289.7,4289.6,0.002]
[1757432110763,5.40606618,4289.7,4289.6,0.002]
[1757432111665,9.38006618,4289.7,4289.6,0.002]
[1757432112998,12.38006618,4289.7,4289.6,0.002]
[1757432115822,3.12338274,4289.3,4289.2,1e-08]
[1757432116031,6.340446,4289.3,4287.8,0.027]
[1757432116194,6.42940017,4288.9,4287.8,0.027]
[1757432116539,8.56569815,4288.9,4287.8,0.027]
[1757432116714,9.48699815,4288.9,4287.8,0.027]
[1757432116924,13.46099815,4288.9,4287.8,0.027]
[1757432118924,12.53794976,4288.9,4287.8,0.027]
[1757432119092,13.03100303,4288.9,4287.8,0.027]
[1757432119281,10.82300303,4288.9,4287.8,0.027]
[1757432119482,10.03100303,4288.9,4287.8,0.027]
[1757432119828,13.82300303,4288.9,4287.8,0.5002]
[1757432120034,8.13570303,4288.9,4287.8,0.9679]
[1757432120229,13.03100303,4288.9,4287.8,0.9679]
[1757432120583,12.10970303,4288.9,4288.1,0.4732]
[1757432120781,12.90170303,4288.9,4288.1,0.4732]
[1757432121396,13.07325212,4288.9,4287.8,0.4947]
[1757432121600,13.99455212,4288.9,4287.8,0.027]
[1757432121816,14.34042591,4288.9,4287.8,0.027]
[1757432123303,14.21072324,4288.9,4288.3,0.002]
[1757432123619,14.34035229,4288.9,4288.3,0.002]
[1757432124185,0.792,4288.7,4288.3,1e-08]
[1757432124386,6.12387202,4288.4,4288.3,1e-08]
[1757432124598,6.42967202,4288.4,4288.3,1e-08]
[1757432124902,7.35097202,4288.4,4288.3,1e-08]
[1757432125619,11.32297202,4288.4,4288.3,1e-08]
[1757432125876,12.03227488,4288.4,4288.3,1e-08]
[1757432126955,12.03227488,4288.4,4287.9,0.002]
[1757432126956,0.792,4287.9,4287.8,1e-08]
[1757432127263,11.88414393,4287.9,4287.8,1e-08]
[1757432127424,13.45695248,4287.9,4287.8,1e-08]
[1757432127622,14.320556,4287.9,4287.8,1e-08]
[1757432127921,14.32045799,4287.9,4287.8,1e-08]
[1757432128428,2.33252472,4287.2,4287.1,1e-08]
[1757432128662,7.09652472,4287.2,4287.1,1e-08]
[1757432128863,12.03292758,4287.2,4287.1,1e-08]
[1757432129577,12.37848967,4287.2,4287.1,1e-08]
[1757432130532,3.12506891,4286.2,4285.8,0.027]
[1757432130731,7.09506891,4286.2,4285.8,0.027]
[1757432130954,7.09506891,4286.2,4286.1,0.8094]
[1757432131264,7.09506891,4286.2,4286.1,1.2771]
[1757432132658,7.95867243,4286.2,4286.1,0.3394]
[1757432133261,7.95867243,4286.2,4286.1,0.7741]
[1757432133481,7.09506891,4286.2,4286.1,0.7741]
[1757432134649,10.40826891,4286.2,4286.1,0.04]
[1757432134979,10.09506891,4286.2,4286.1,0.04]
[1757432135180,10.09426891,4286.2,4286.1,0.04]
[1757432135980,10.40746891,4286.2,4286.1,0.04]
[1757432136160,10.88746891,4286.2,4286.1,0.04]
[1757432136777,11.01693379,4286.2,4286.1,0.04]
[1757432137282,11.45443379,4286.2,4286.1,0.04]
[1757432137450,10.22373379,4286.2,4286.1,0.04]
[1757432137982,10.53693379,4286.2,4286.1,0.04]
[1757432138181,10.53693379,4286.2,4286.1,1e-08]
[1757432138383,10.53693379,4286.2,4285.8,0.027]
[1757432138384,6.12523222,4285.9,4285.8,1e-08]
[1757432138555,10.2216971,4285.9,4285.8,1e-08]
[1757432139381,10.9723971,4285.9,4285.8,1e-08]
[1757432139561,11.4523971,4285.9,4285.8,1e-08]
[1757432140873,11.66832447,4285.9,4285.8,1e-08]
[1757432142711,11.66833812,4285.9,4285.8,1e-08]
[1757432143302,3.12539555,4285.6,4285.5,1e-08]
[1757432143611,10.08939555,4285.6,4285.5,1e-08]
[1757432143772,10.74800145,4285.6,4285.5,1e-08]
[1757432144996,7.08839555,4285.6,4285.5,1.19550001]
[1757432146994,7.08839555,4285.6,4285.5,0.29940001]
[1757432147310,7.21807776,4285.6,4285.5,0.29940001]
[1757432147719,7.21807776,4285.6,4285.5,0.73410001]
[1757432147934,7.21807776,4285.6,4285.5,1.19550001]
[1757432147935,4.869,4285.6,4285.5,1.19550001]
[1757432148218,2.33339555,4285.6,4285.5,1.19550001]
[1757432148450,3.961,4285.6,4285.5,1.19550001]
[1757432149157,6.29439555,4285.6,4285.5,1.19550001]
[1757432150626,7.08639555,4285.6,4285.5,1.19550001]
[1757432151524,4.753,4285.6,4285.5,1.19550001]
[1757432151730,7.08639555,4285.6,4285.5,1.19550001]
[1757432152128,1.79,4286.3,4285.5,1.31545001]
[1757432152327,3.986,4286.8,4285.6,0.91943395]
[1757432152567,3.986,4286.8,4286.7,0.2994]
[1757432152568,6.31874237,4286.8,4286.7,0.2994]
[1757432152773,6.31874237,4286.8,4286.7,1.1955]
[1757432153076,6.31874237,4286.8,4286.7,0.7608]
[1757432153369,6.31874237,4286.8,4286.7,1.1955]
[1757432153370,3.986,4286.8,4286.7,1.1955]
[1757432153580,6.31874237,4286.8,4286.7,1.1955]
[1757432153742,7.11074237,4286.8,4286.7,1.1955]
[1757432154128,2.33301448,4286.3,4286.2,0.4614]
[1757432154479,3.961,4286.3,4286.2,0.4614]
[1757432154642,0.025,4286.8,4286.2,1.1955]
[1757432154967,0.025,4286.8,4286.3,0.14288014]
[1757432155127,0.025,4287.8,4286.3,0.14288014]
[1757432155128,0.025,4287.8,4286.7,0.2994]
[1757432155329,0.777,4287.6,4286.9,2.33268584]
[1757432155560,0.025,4287.8,4287.0,0.02332633]
[1757432155766,0.025,4287.8,4287.1,0.2994]
[1757432156009,0.025,4287.8,4287.3,3.0]
[1757432156144,0.025,4287.8,4287.1,4.90915543]
[1757432156145,0.001,4288.1,4287.5,2.33236151]
[1757432156349,0.025,4288.8,4288.7,2.3317089]
[1757432156663,0.04,4288.9,4288.8,2.33165454]
[1757432156872,0.04,4288.9,4288.8,3.22775454]
[1757432157069,0.04,4288.9,4288.8,4.59447728]
[1757432158051,0.04,4288.9,4288.8,7.61779382]
[1757432158250,0.04,4288.9,4288.8,7.59447728]
[1757432158583,0.04,4288.9,4288.8,5.26282274]
[1757432158789,0.04,4288.9,4288.8,2.26282274]
[1757432159284,0.04,4288.9,4288.8,7.59447728]
[1757432159483,0.04,4288.9,4288.8,5.26282274]
[1757432159789,0.04,4288.9,4288.8,1.80142274]
[1757432159989,0.04,4288.9,4288.3,0.4614]
[1757432160293,0.04,4288.9,4288.1,0.4347]
[1757432160596,0.792,4288.8,4287.4,0.4614]
[1757432160764,0.792,4288.1,4287.3,0.4347]
[1757432160963,4.761,4288.1,4287.4,0.22247]
[1757432161493,4.7602,4288.1,4287.4,0.22247]
[1757432161661,7.09228496,4288.1,4287.7,0.116]
[1757432161863,2.33218692,4287.9,4287.1,1.79]
[1757432162077,2.33220615,4287.8,4287.4,0.116]
[1757432162286,6.417049,4288.1,4287.4,0.116]
[1757432162287,4.085,4288.1,4287.4,0.116]
[1757432162581,4.085,4288.1,4287.1,0.116]
[1757432162582,2.33231955,4287.6,4287.1,0.116]
[1757432162785,2.33237642,4287.5,4287.1,0.116]
[1757432162987,0.2885,4287.2,4286.8,0.025]
[1757432163189,2.33263354,4287.0,4286.8,0.025]
[1757432163367,7.09368795,4286.9,4286.8,0.025]
[1757432163584,7.38218795,4286.9,4286.8,0.025]
[1757432163980,0.792,4286.9,4286.8,0.025]
[1757432164195,0.792,4287.0,4286.8,0.025]
[1757432164384,2.33262537,4287.1,4286.8,0.025]
[1757432164385,3.969,4286.9,4286.8,0.025]
[1757432164579,1.79,4287.2,4286.9,0.2861]
[1757432164580,3.969,4287.0,4286.9,0.2861]
[1757432164782,3.969,4287.0,4286.9,0.7565]
[1757432164980,3.969,4287.0,4286.9,0.88128]
[1757432165315,5.759,4287.2,4286.9,0.88128]
[1757432165514,5.759,4287.2,4286.9,0.7565]
[1757432165815,1.79,4287.2,4286.9,0.7565]
[1757432166120,5.759,4287.2,4287.0,0.4704]
[1757432166312,5.759,4287.2,4287.1,0.2861]
[1757432166617,8.09152472,4287.2,4287.1,0.2861]
[1757432166771,5.759,4287.2,4287.1,0.2861]
[1757432166967,5.759,4287.2,4286.8,0.025]
[1757432167312,3.41318795,4286.9,4286.8,0.025]
[1757432168209,4.34848795,4286.9,4286.8,0.025]
[1757432168413,0.792,4286.5,4286.1,0.04]
[1757432168571,4.2238,4286.9,4286.1,0.04]
[1757432168572,0.792,4286.3,4286.1,0.04]
[1757432168767,6.59156891,4286.2,4286.1,0.04]
[1757432169369,7.52686891,4286.2,4286.1,0.04]
[1757432169572,7.03706891,4286.2,4286.1,0.04]
[1757432169784,6.59156891,4286.2,4286.1,0.04]
[1757432170509,0.792,4286.3,4286.1,0.04]
[1757432170674,3.97,4286.2,4286.1,0.3261]
[1757432171218,3.972,4286.2,4286.1,0.3261]
[1757432173016,6.30506891,4286.2,4286.1,0.3261]
[1757432173396,6.30506891,4286.2,4286.1,0.04]
[1757432174109,3.972,4286.2,4286.1,0.04]
[1757432174613,3.972,4286.2,4286.1,0.3261]
[1757432174775,3.972,4286.2,4286.1,0.04]
[1757432174981,6.30506891,4286.2,4286.1,0.04]
[1757432175516,6.59356891,4286.2,4286.1,0.04]
[1757432175701,3.06706891,4286.2,4286.1,0.04]
[1757432175906,6.58956891,4286.2,4286.1,0.04]
[1757432176414,6.30106891,4286.2,4286.1,0.04]
[1757432178562,7.38156891,4286.2,4286.1,0.042]
[1757432178760,8.14533516,4286.2,4286.1,0.042]
[1757432178935,7.38156891,4286.2,4286.1,0.042]
[1757432179534,4.758,4286.2,4286.1,0.042]
[1757432179739,7.09106891,4286.2,4286.1,0.042]
[1757432180236,3.12506891,4286.2,4286.1,0.042]
[1757432180430,7.09006891,4286.2,4286.1,0.042]
[1757432180656,7.08906891,4286.2,4286.1,0.042]
[1757432181972,3.12506891,4286.2,4286.1,0.042]
[1757432182146,6.29706891,4286.2,4286.1,0.3281]
[1757432182337,0.792,4286.3,4286.1,0.3281]
[1757432182537,6.963,4286.2,4286.1,0.7985]
[1757432182761,6.963,4286.2,4286.1,0.3281]
[1757432182936,9.29606891,4286.2,4286.1,0.3281]
[1757432183541,8.31186891,4286.2,4286.1,0.042]
[1757432183732,9.63455287,4286.2,4286.1,0.042]
[1757432185334,7.37656891,4286.2,4286.1,0.042]
[1757432185536,3.12506891,4286.2,4286.1,0.3281]
[1757432185734,3.965,4286.2,4286.1,0.3281]
[1757432185959,6.29806891,4286.2,4286.1,0.042]
[1757432186172,6.58656891,4286.2,4286.1,0.042]
[1757432186391,7.37856891,4286.2,4286.1,0.042]
[1757432186568,8.89502725,4286.2,4286.1,0.042]
[1757432186757,9.38482725,4286.2,4286.1,0.042]
[1757432187649,9.38402725,4286.2,4286.1,0.042]
[1757432189844,12.60108948,4286.2,4286.1,0.042]
[1757432191147,12.60108948,4286.2,4285.8,0.025]
[1757432191148,3.12523222,4285.9,4285.8,0.025]
[1757432191359,10.59218026,4285.9,4285.8,0.025]
[1757432191564,11.99634249,4285.9,4285.8,0.025]
[1757432191982,6.12528666,4285.8,4285.6,0.002]
[1757432192183,10.30540334,4285.7,4285.6,0.002]
[1757432192388,11.50900334,4285.7,4285.6,0.002]
[1757432192594,12.57996168,4285.7,4285.6,0.002]
[1757432193388,11.37536168,4285.7,4285.6,0.002]
[1757432194080,11.68036168,4285.7,4285.6,0.002]
[1757432196295,7.71836168,4285.7,4285.6,0.002]
[1757432196591,11.67961698,4285.7,4285.6,0.002]
[1757432198628,11.37461698,4285.7,4285.6,0.002]
[1757432198850,0.4707,4286.2,4285.6,0.002]
[1757432198851,0.4967,4286.8,4285.6,0.7898]
[1757432199125,0.4967,4286.8,4285.6,1.2225]
[1757432199126,0.116,4286.2,4285.6,1.2225]
[1757432199331,2.33323222,4285.9,4285.6,1.2225]
[1757432199631,2.33334111,4285.7,4285.6,0.3067]
[1757432199933,3.43034111,4285.7,4285.6,0.002]
[1757432200428,3.12534111,4285.7,4285.6,0.002]
[1757432200605,3.12534111,4285.7,4285.6,0.3067]
[1757432202129,4.38389844,4285.7,4285.6,0.002]
[1757432202431,6.64559844,4285.7,4285.6,0.002]
[1757432202634,7.07349844,4285.7,4285.6,0.002]
[1757432202939,10.29090432,4285.7,4285.6,0.002]
[1757432203936,9.82020432,4285.7,4285.6,0.002]
[1757432204122,9.17489844,4285.7,4285.6,0.002]
[1757432204327,7.91634111,4285.7,4285.6,0.3067]
[1757432204638,7.91634111,4285.7,4285.6,1.2225]
[1757432204639,8.87734111,4285.7,4285.6,1.2225]
[1757432205052,8.87734111,4285.7,4285.6,0.3067]
[1757432205417,8.87734111,4285.7,4285.6,0.7394]
[1757432205944,8.87734111,4285.7,4285.6,1.2225]
[1757432206353,8.08534111,4285.7,4285.6,1.2225]
[1757432208918,8.08534111,4285.7,4285.6,0.7394]
[1757432209654,8.08534111,4285.7,4285.6,1.2225]
[1757432209860,0.8986,4286.5,4285.6,1.2225]
[1757432209861,0.20070843,4286.8,4285.6,1.47255]
[1757432210160,4.077,4286.7,4285.7,0.9158]
[1757432210346,2.33316716,4286.1,4286.0,0.116]
[1757432210542,6.29416716,4286.1,4286.0,0.116]
[1757432210756,3.961,4286.1,4286.0,0.4207]
[1757432210935,3.95951599,4286.1,4286.0,1.3365]
[1757432211132,0.026,4286.8,4286.0,1.47015]
[1757432211429,3.607,4286.7,4286.3,0.116]
[1757432211617,5.93979679,4286.7,4286.6,0.3047]
[1757432211816,2.33279679,4286.7,4286.6,0.7374]
[1757432212217,6.29379679,4286.7,4286.6,1.2205]
[1757432212624,6.29379679,4286.7,4286.6,0.7878]
[1757432212825,6.29379679,4286.7,4286.6,0.3047]
[1757432213263,2.33296005,4286.4,4286.3,0.116]
[1757432213474,6.29396005,4286.4,4286.3,0.116]
[1757432213678,6.29396005,4286.4,4286.3,0.4207]
[1757432213841,6.29316005,4286.4,4286.3,0.4207]
[1757432214632,7.39016005,4286.4,4286.3,0.116]
[1757432214837,0.792,4286.1,4285.8,0.116]
[1757432215090,2.33323222,4285.9,4285.8,0.116]
[1757432215385,2.33323222,4285.9,4285.8,0.5487]
[1757432215666,2.33323222,4285.9,4285.8,0.8534]
[1757432216066,2.33323222,4285.9,4285.8,0.4207]
[1757432217764,2.33323222,4285.9,4285.8,0.116]
[1757432217982,2.33323222,4285.9,4285.8,0.4207]
[1757432218864,2.63823222,4285.9,4285.8,0.116]
[1757432219275,2.33323222,4285.9,4285.8,0.4207]
[1757432219481,3.961,4286.0,4285.8,0.8534]
[1757432219847,0.116,4286.5,4285.8,0.4207]
[1757432220059,3.961,4286.4,4285.9,0.9158]
[1757432220251,3.961,4286.4,4286.3,0.3047]
[1757432220252,6.29396005,4286.4,4286.3,0.3047]
[1757432220452,3.96,4286.4,4286.3,1.2205]
[1757432221182,2.33381367,4286.7,4286.3,1.2205]
[1757432221183,0.001,4286.7,4286.3,1.2205]
[1757432221388,3.96,4286.6,4286.5,0.116]
[1757432221560,6.29285121,4286.6,4286.5,0.8691]
[1757432221764,6.29285121,4286.6,4286.5,0.4207]
[1757432221957,6.57805121,4286.6,4286.5,0.116]
[1757432222150,8.98683121,4286.6,4285.6,0.002]
[1757432222352,8.98683121,4286.6,4286.1,0.116]
[1757432222353,2.33301448,4286.3,4286.1,0.116]
[1757432222576,5.162,4286.6,4285.6,0.002]
[1757432222577,2.33332492,4285.8,4285.6,0.002]
[1757432222769,6.29332771,4285.8,4285.7,0.116]
[1757432223472,3.96,4285.8,4285.7,0.116]
[1757432223669,3.96,4285.8,4285.7,0.4054]
[1757432223909,3.96,4285.8,4285.7,0.8538]
[1757432224408,3.96,4285.8,4285.7,0.4054]
[1757432224704,2.33317778,4286.0,4285.7,0.4054]
[1757432224907,3.96,4285.9,4285.7,0.4054]
[1757432225110,2.33334111,4285.7,4285.6,0.002]
[1757432225315,7.83487522,4285.7,4285.6,0.002]
[1757432225474,7.37054111,4285.7,4285.6,0.002]
[1757432225670,8.28734111,4285.7,4285.6,0.002]
[1757432227932,3.41054111,4285.7,4285.6,0.002]
[1757432228134,7.37054111,4285.7,4285.6,0.002]
[1757432229034,7.08534111,4285.7,4285.6,0.002]
[1757432229220,6.29334111,4285.7,4285.6,0.2914]
[1757432229426,6.29334111,4285.7,4285.6,1.2262]
[1757432229427,3.96,4285.7,4285.6,1.2262]
[1757432230034,0.116,4286.4,4285.6,0.2914]
[1757432230334,0.001,4286.7,4285.6,0.2914]
[1757432230335,3.96,4286.3,4285.6,1.2262]
[1757432230631,2.33327904,4285.9,4285.6,1.2262]
[1757432230797,3.96,4285.8,4285.7,0.4484]
[1757432231003,6.29328666,4285.8,4285.7,1.0508]
[1757432231199,6.29328666,4285.8,4285.7,0.116]
[1757432231940,6.29328666,4285.8,4285.7,0.4054]
[1757432233029,2.33334111,4285.7,4285.6,0.002]
[1757432233905,2.33334111,4285.7,4285.6,0.2914]
[1757432234814,2.61854111,4285.7,4285.6,0.002]
[1757432235348,4.30172389,4285.7,4285.6,0.002]
[1757432235556,5.21852389,4285.7,4285.6,0.002]
[1757432236111,10.22685674,4285.7,4285.6,0.002]
[1757432237975,10.22685674,4285.7,4285.2,0.002]
[1757432237976,3.12555891,4285.3,4285.2,0.002]
[1757432238257,10.08555891,4285.3,4285.2,0.002]
[1757432238550,12.18661536,4285.3,4285.2,0.002]
[1757432239145,7.76191536,4285.3,4285.2,0.002]
[1757432239346,10.30289176,4285.3,4285.2,0.002]
[1757432239546,11.50489176,4285.3,4285.2,0.002]
[1757432240052,11.50409176,4285.3,4285.2,0.002]
[1757432240442,7.54409176,4285.3,4285.2,0.002]
[1757432240640,11.50409176,4285.3,4285.2,0.002]
[1757432241152,11.28675891,4285.3,4285.2,0.002]
[1757432242112,6.40995891,4285.3,4285.2,0.002]
[1757432242358,10.36995891,4285.3,4285.2,0.002]
[1757432242556,10.08475891,4285.3,4285.2,0.002]
[1757432242763,10.36995891,4285.3,4285.2,0.002]
[1757432243059,11.64030342,4285.3,4285.2,0.002]
[1757432245358,12.77389066,4285.3,4285.2,0.002]
[1757432246148,0.792,4284.9,4283.6,0.9348]
[1757432246345,6.12588568,4284.7,4283.6,0.9348]
[1757432246546,6.93043479,4284.7,4283.5,0.118]
[1757432246739,7.84723479,4284.7,4283.5,0.118]
[1757432249143,7.84723479,4284.7,4283.5,0.002]
[1757432249353,2.33448501,4283.6,4283.5,0.002]
[1757432249557,10.08648501,4283.6,4283.5,0.002]
[1757432249931,10.08648501,4283.6,4283.5,0.2914]
[1757432250139,10.08648501,4283.6,4283.5,0.002]
[1757432250865,10.08648501,4283.6,4283.5,0.2914]
[1757432251034,6.12648501,4283.6,4283.5,0.2914]
[1757432251234,11.39687462,4283.6,4283.5,0.002]
[1757432251770,6.12670302,4283.2,4283.1,0.04]
[1757432251976,10.08670302,4283.2,4283.1,0.04]
[1757432252269,10.39500302,4283.2,4283.1,0.04]
[1757432252472,10.08670302,4283.2,4283.1,0.04]
[1757432252675,10.33185792,4283.2,4283.1,0.04]
[1757432253157,6.12675753,4283.1,4283.0,0.002]
[1757432253371,6.57115753,4283.1,4283.0,0.002]
[1757432253542,10.08675753,4283.1,4283.0,0.3]
[1757432253874,10.6976194,4283.1,4283.0,0.002]
[1757432254029,11.1730194,4283.1,4283.0,0.002]
[1757432254235,11.6174194,4283.1,4283.0,0.002]
[1757432254937,3.12686656,4282.9,4282.8,1e-08]
[1757432255232,11.87886656,4282.9,4282.8,1e-08]
[1757432255447,14.13215617,4282.9,4282.8,1e-08]
[1757432256547,14.13315617,4282.9,4282.8,1e-08]
[1757432256742,14.34874403,4282.9,4282.8,1e-08]
[1757432257270,6.12692107,4282.8,4282.3,1e-08]
[1757432257568,3.12713917,4282.4,4282.3,1e-08]
[1757432257773,10.39643917,4282.4,4282.3,1e-08]
[1757432258068,11.53166279,4282.4,4282.3,1e-08]
[1757432260663,11.53166279,4282.4,4282.3,0.29800001]
[1757432260664,9.09556279,4282.4,4282.3,0.29800001]
[1757432260864,4.24313917,4282.4,4282.3,0.29800001]
[1757432261070,9.17025761,4282.4,4282.3,1e-08]
[1757432261267,12.96225761,4282.4,4282.3,1e-08]
[1757432261457,13.76605761,4282.4,4282.3,1e-08]
[1757432261650,9.36065761,4282.4,4282.3,1e-08]
[1757432261878,12.84625761,4282.4,4282.3,1e-08]
[1757432262876,13.76605761,4282.4,4282.3,1e-08]
[1757432263957,13.98133517,4282.4,4282.3,1e-08]
[1757432265597,6.12741184,4281.9,4281.8,0.025]
[1757432265755,11.1510163,4281.9,4281.8,0.025]
[1757432266089,11.1502163,4281.9,4281.8,0.025]
[1757432266449,10.93488607,4281.9,4281.8,0.025]
[1757432266644,6.12661184,4281.9,4281.8,0.323]
[1757432266872,10.39691184,4281.9,4281.8,0.025]
[1757432267285,10.08861184,4281.9,4281.8,0.025]
[1757432267594,10.61226916,4281.9,4281.8,0.025]
[1757432267797,10.39691184,4281.9,4281.8,0.025]
[1757432268104,11.67013607,4281.9,4281.8,0.025]
[1757432268317,3.12752093,4281.7,4281.6,0.003]
[1757432268601,7.08952093,4281.7,4281.6,0.003]
[1757432268759,10.08952093,4281.7,4281.6,0.003]
[1757432268962,10.60457437,4281.7,4281.6,0.301]
[1757432269879,10.91287437,4281.7,4281.6,0.003]
[1757432270086,10.60457437,4281.7,4281.6,0.303]
[1757432272006,10.60457437,4281.7,4281.6,0.7648]
[1757432272206,5.55089222,4281.7,4281.6,0.303]
[1757432272359,9.29752093,4281.7,4281.6,0.303]
[1757432272589,9.41352093,4281.7,4281.6,0.303]
[1757432272992,0.116,4281.7,4281.6,1.2108]
[1757432273247,0.116,4282.2,4281.6,1.2108]
[1757432273454,2.33525351,4282.2,4281.7,1.04078]
[1757432273658,1.793,4282.3,4282.1,0.298]
[1757432273840,0.025,4282.8,4282.1,0.414]
[1757432274004,3.962,4282.7,4282.1,0.298]
[1757432274210,3.962,4282.7,4282.5,0.116]
[1757432274545,0.025,4282.8,4282.5,0.116]
[1757432274546,0.025,4282.8,4282.6,1.2058]
[1757432274695,0.025,4282.8,4282.7,1.03998]
[1757432274897,0.025,4282.8,4282.7,1.15598]
[1757432275132,3.987,4282.8,4282.7,1.45398]
[1757432275338,3.987,4282.8,4282.7,1.3218]
[1757432276039,0.025,4282.8,4282.7,1.2058]
[1757432276241,0.025,4282.8,4282.7,1.3218]
[1757432276596,0.025,4282.8,4282.7,3.65677559]
[1757432276796,0.025,4282.8,4282.7,3.56412534]
[1757432277029,0.025,4282.8,4282.7,4.38701069]
[1757432277238,0.025,4282.8,4282.7,7.36366094]
[1757432277537,0.025,4282.8,4282.7,11.32566094]
[1757432277743,0.025,4282.8,4282.7,8.32566094]
[1757432279354,1e-08,4282.8,4282.7,8.32566094]
[1757432279534,1e-08,4282.8,4282.7,9.11766094]
[1757432279737,1e-08,4282.8,4282.7,9.11666094]
[1757432279926,1e-08,4282.8,4282.7,4.45702301]
[1757432280121,1e-08,4282.8,4282.7,8.41802301]
[1757432280613,1e-08,4282.8,4282.7,9.21002301]
[1757432280813,1e-08,4282.8,4282.7,12.21002301]
[1757432281112,1e-08,4282.8,4282.7,7.45702301]
[1757432281317,1e-08,4282.8,4282.7,12.66725403]
[1757432281628,1e-08,4282.8,4282.7,4.45702301]
[1757432281829,1e-08,4282.8,4282.7,11.32566094]
[1757432282026,1e-08,4282.8,4282.7,4.24669536]
[1757432282263,1e-08,4282.8,4282.7,8.20869536]
[1757432282554,1e-08,4282.8,4282.7,11.20869536]
[1757432282719,1e-08,4282.8,4282.7,5.87371977]
[1757432283064,1e-08,4282.8,4282.7,4.376]
[1757432283617,1e-08,4282.8,4282.7,6.71097559]
[1757432283831,1e-08,4282.8,4282.7,7.61177559]
[1757432284052,1e-08,4282.8,4282.7,4.376]
[1757432284437,1e-08,4282.8,4282.7,3.18627559]
[1757432284647,1e-08,4282.8,4282.7,0.116]
[1757432284829,0.75500001,4282.8,4282.7,0.116]
[1757432285025,1.23030001,4282.8,4281.9,3.142]
[1757432285258,0.76130001,4282.8,4282.3,0.116]
[1757432285440,2.02230001,4282.8,4282.3,0.116]
[1757432285756,4.35725308,4282.8,4282.3,0.116]
[1757432286053,1.54700001,4282.8,4282.3,0.116]
[1757432286263,1e-08,4282.8,4282.3,0.116]
[1757432286444,1e-08,4282.8,4282.7,0.4324]
[1757432286962,1e-08,4282.8,4282.7,1.7000277]
[1757432287262,1e-08,4282.8,4282.7,1.3332]
[1757432287416,1e-08,4282.8,4282.7,0.4324]
[1757432288660,2.33503204,4282.6,4281.8,0.002]
[1757432288877,0.286,4281.9,4281.8,0.002]
[1757432289040,0.9443,4282.5,4281.9,0.116]
[1757432289041,0.792,4282.4,4281.9,0.116]
[1757432289218,0.97723,4282.4,4281.9,0.116]
[1757432289426,0.116,4282.7,4281.9,0.02335411]
[1757432289623,2.45102482,4282.7,4282.2,0.116]
[1757432289924,2.33504544,4282.6,4282.2,0.116]
[1757432290327,0.286,4282.3,4282.2,0.116]
[1757432291039,2.6211937,4282.3,4282.2,0.116]
[1757432291359,3.5654937,4282.3,4282.2,0.116]
[1757432291742,2.33541184,4281.9,4281.8,0.002]
[1757432291942,2.33533603,4282.1,4281.8,0.002]
[1757432291943,0.792,4282.1,4281.8,0.002]
[1757432292140,2.62141184,4281.9,4281.8,0.002]
[1757432292326,2.62061184,4281.9,4281.8,0.002]
[1757432292530,3.56491184,4281.9,4281.8,0.002]
[1757432292973,3.09591184,4281.9,4281.8,0.002]
[1757432293164,3.56491184,4281.9,4281.8,0.002]
[1757432293334,4.54776004,4281.9,4281.8,0.002]
[1757432293529,5.33976004,4281.9,4281.8,0.002]
[1757432293851,8.33976004,4281.9,4281.8,0.002]
[1757432296176,12.30876004,4281.9,4281.8,0.002]
[1757432296483,8.33976004,4281.9,4281.8,0.002]
[1757432296978,10.38361184,4281.9,4281.8,0.002]
[1757432297310,3.908,4281.8,4281.1,0.00679996]
[1757432297439,3.12801196,4280.8,4279.8,1e-08]
[1757432297658,0.792,4280.5,4279.8,1e-08]
[1757432297862,3.792,4280.3,4279.8,1e-08]
[1757432298062,4.49093942,4280.2,4279.8,1e-08]
[1757432298294,5.43523942,4280.2,4279.8,1e-08]
[1757432299087,8.43523942,4280.2,4279.8,1e-08]
[1757432299266,10.38933942,4280.2,4279.8,1e-08]
[1757432299465,11.33363942,4280.2,4279.8,1e-08]
[1757432299956,10.86463942,4280.2,4279.8,1e-08]
[1757432300162,10.39033942,4280.2,4279.8,1e-08]